Cogmind - Beta 15 @@@ ROGUE MODE // 2025.05.26 @ 19:26:36 Player: aoemica Result: Destroyed by 6N-N1Z(R) with Subdweller Beam Cannon Performance ------------- Evolutions (0) 0 Regions Visited (2) 400 Robots Destroyed (25) 125 Value Destroyed (670) 670 Prototype IDs (0) 0 Alien Tech Used (0) 0 Bonus (-22) -22 TOTAL SCORE: 1173 Bonus ------- Friendly Fire -22 Cogmind --------- Core Integrity 0/250 Matter 300/300 Energy 184/200 System Corruption 0% Temperature Cool (15) Movement Treading (160) Location -10/Subcaves Parts ------- > --- POWER (1) -------- Subdweller Power Source > --- PROPULSION (2) --- Light Treads Light Treads > --- UTILITY (2) ------ Large Storage Unit > --- WEAPON (2) ------- Subdweller Beam Cannon Subdweller Machine Gun > --- INVENTORY (15) --- Spiked Treads Flightbrick Scrap Shield Beamcaster Subdweller Beam Cannon Subdweller Machine Gun Subdweller Machine Gun Subdweller Machine Gun Subdweller Shrapnel Launcher Multitool Makeshift Sword Peak State ------------ > --- POWER ------------ Subdweller Power Source > --- PROPULSION ------- Light Treads Light Treads > --- UTILITY ---------- Scrap Shield > --- WEAPON ----------- Subdweller Machine Gun Makeshift Sword > --- INVENTORY -------- Flightbrick Subdweller Machine Gun [Rating: 17] Favorites ----------- Power Subdweller Power Source Engine Subdweller Power Source Propulsion Light Treads Treads Light Treads Leg Aluminum Leg Utility Large Storage Unit Device Seismic Detector Storage Large Storage Unit Protection Scrap Shield Weapon Subdweller Machine Gun Energy Gun Small Laser Energy Cannon Subdweller Beam Cannon Ballistic Gun Subdweller Machine Gun Ballistic Cannon Light Cannon Special Weapon Plasma Cutter Slashing Weapon Makeshift Sword Build | -11 -10 -10 ------- Run | Yrd Mat Sub Slots Evolved . | . . . Power . | . . . Propulsion . | . . . Utility . | . . . Weapon . | . . . Parts Attached 24 | 1 10 13 Power 2 | . . 2 Engine 2 | . . 2 Core . | . . . Reactor . | . . . Propulsion 4 | . 4 . Treads 2 | . 2 . Leg 2 | . 2 . Wheel . | . . . Hover . | . . . Flight . | . . . Utility 6 | 1 2 3 Device 4 | 1 1 2 Storage 1 | . 1 . Processor . | . . . Hackware . | . . . Protection 1 | . . 1 Artifact . | . . . Weapon 12 | . 4 8 Energy Gun 4 | . 4 . Energy Cannon 1 | . . 1 Ballistic Gun 3 | . . 3 Ballistic Cannon 2 | . . 2 Launcher . | . . . Special Weapon 1 | . . 1 Impact Weapon . | . . . Slashing Weapon 1 | . . 1 Piercing Weapon . | . . . Special Melee Weapon . | . . . Unidentified Prototypes . | . . . Parts Lost 2 | . . 2 Power . | . . . Propulsion . | . . . Utility 2 | . . 2 Weapon . | . . . Highest Loss Streak 1 | . . 1 To Critical Strikes . | . . . Average Backups 7 | 6 10 7 Power . | 1 1 . Propulsion 1 | 4 3 1 Utility 1 | . 2 1 Weapon 3 | 1 2 3 Tool/Special . | . . . Unused Backups 25 | 6 2 17 Power 3 | 1 . 2 Propulsion 7 | 2 1 4 Utility 2 | 1 . 1 Weapon 12 | 2 1 9 Tool/Special 1 | . . 1 Average Slot Usage (%) 95 | . 100 93 Engine 14 | . 14 14 Treads 25 | . 18 28 Leg 2 | . 9 . Device 9 | . 14 8 Storage 10 | . 14 9 Protection 3 | . . 4 Energy Gun 7 | . 28 . Energy Cannon 2 | . . 3 Ballistic Gun 16 | . . 21 Peak Build Rating 17 | 7 11 17 Average Rating 13 | 6 8 15 On Entrance 8 | 6 7 11 Naked Turns . | . . . Heaviest Build 39 | 13 32 39 Greatest Support 40 | 20 40 40 Greatest Overweight (x) . | . . . Average Overweight (x) . | . . . Largest Inventory Capacity 15 | 8 15 15 Average Capacity 12 | 8 12 11 Most Carried 15 | 7 15 15 Average Carried 10 | 6 10 10 Final Capacity 15 | 8 15 15 Final Carried 15 | 7 15 15 Class Distribution -------------------- 48% | Mutant 32% | Scavenger-Mutant 18% | Subdweller-Mutant Dominant Class ---------------- Mutant | -10/Materials Scavenger-Mutant | -10/Subcaves Resources | -11 -10 -10 ----------- Run | Yrd Mat Sub Matter Collected 723 | 210 130 383 Remotely . | . . . Salvage Created 858 | 170 331 357 Parts 55 | 15 15 25 Haulers Intercepted 1 | . 1 . Recyclers Shooed 1 | 1 . . Parts Field Recycled . | . . . Retrieved Matter . | . . . Parts Self-Destructed 11 | . . 11 Prevented . | . . . Kills | -11 -10 -10 ------- Run | Yrd Mat Sub Combat Hostiles Destroyed 15 | . 6 9 Guns 13 | . 6 7 Cannons 2 | . . 2 Classes Destroyed 8 | 2 4 2 Builder 1 | . 1 . Tunneler 5 | 5 . . Hauler 1 | . 1 . Recycler 1 | 1 . . Watcher 2 | . 2 . Grunt 6 | . 6 . Artisan 1 | . . 1 Subdweller 9 | . . 9 Best Kill Streak 4 | 4 3 1 Combat Bots Only 2 | . 2 1 Max Kills in Single Turn 1 | 1 1 1 Gunslinging . | . . . Exploded . | . . . Melee . | . . . Uniques/NPCs Destroyed . | . . . Combat | -11 -10 -10 -------- Run | Yrd Mat Sub Hostile Shots Fired 71 | . 26 45 Missed 13 | . 4 9 Hits 58 | . 22 36 Projectile 58 | . 22 36 Critical Strikes 2 | . 1 1 Damage Taken 1076 | . 262 814 Core 261 | . 66 195 Absorbed by Shields 42 | . . 42 Core Remaining (%) 100 | 100 . . Volleys Fired 99 | 15 29 55 Largest 2 | 2 2 2 Hottest 95 | 80 90 95 Shots Fired 171 | 30 58 83 Gun 141 | 30 58 53 Cannon 30 | . . 30 Launcher . | . . . Special . | . . . Kinetic 63 | . . 63 Thermal 108 | 30 58 20 Explosive . | . . . Electromagnetic . | . . . Robot Hit Streak 11 | 7 11 9 Robot Miss Streak 3 | 2 2 3 Penetration Max . | . . . Secondary Targets 1 | . 1 . Max Gunslinging Chain 1 | . 1 . Shots Hit Robots 114 | 19 43 52 Core Hits 39 | 7 18 14 Critical Kills 1 | . . 1 Critical Parts Destroyed . | . . . Critical Strikes 4 | . 2 2 Burn 2 | . 2 . Destroy 2 | . . 2 Melee Attacks 35 | . . 35 Impact . | . . . Slashing 35 | . . 35 Piercing . | . . . Sneak Attacks 2 | . . 2 Combat Hostiles . | . . . Follow-up Attacks . | . . . Damage Inflicted 1800 | 212 511 1077 Guns 1369 | 212 507 650 Cannons 355 | . . 355 Explosions . | . . . Melee 72 | . . 72 Ramming 4 | . 4 . Kinetic 721 | . . 721 Thermal 1003 | 212 507 284 Explosive . | . . . Electromagnetic . | . . . Impact . | . . . Slashing 72 | . . 72 Piercing . | . . . Highest Corruption . | . . . Average Corruption . | . . . Corruption Purged . | . . . Corruption Blocked . | . . . Overload Shots . | . . . Overflow Damage . | . . . Projectiles . | . . . Explosions . | . . . Melee . | . . . Knockbacks 3 | . . 3 Impact . | . . . Kinetic 3 | . . 3 Secondary . | . . . Self-Inflicted Damage . | . . . Shots . | . . . Rammed . | . . . Targets Rammed 1 | . 1 . Kicked . | . . . Crushed 1 | . 1 . Highest Temperature 226 | 144 226 18 Average Temperature 69 | 69 75 10 Received Heat Transfer 306 | . 165 141 Siege Activations . | . . . Martial Activations . | . . . Shielding Activations . | . . . Robots Disrupted . | . . . Combat Hostiles . | . . . Robots Corrupted . | . . . Combat Hostiles . | . . . Parts Fried . | . . . Impact Corruptions . | . . . Robots Melted . | . . . Combat Hostiles . | . . . Parts Melted 7 | 1 5 1 Heat Transferred 2407 | 500 1500 407 Parts Sabotaged . | . . . Parts Stolen . | . . . Parts Stripped . | . . . Power Chain Reactions . | . . . Alert | -11 -10 -10 ------- Run | Yrd Mat Sub Maximum Alert Level . | . . . Low Security (%) 100 | 100 100 . Level 1 . | . . . Level 2 . | . . . Level 3 . | . . . Level 4 . | . . . Level 5 . | . . . High Security . | . . . Max Security . | . . . Peak Influence 53 | 10 53 . Initial . | . . . Average 9 | 3 10 . Influence Increases 273 | 30 213 30 Destroy 0b10 Robot/C 120 | . 120 . Destroy 0b10 Robot/NC 50 | 30 20 . Destroy Leader 26 | . 26 . Successful Hack 32 | . 32 . Lose Combat Pursuer 45 | . 15 30 Influence Decreases 273 | 30 213 30 Time Decay 273 | 30 213 30 Squads Dispatched . | . . . Investigation . | . . . Extermination . | . . . Reinforcement . | . . . Assault . | . . . Garrison . | . . . Intercept . | . . . Searches Triggered . | . . . Construction Impeded . | . . . Haulers Reinforced . | . . . Active Scanning Responses . | . . . Cargo Convoy Interrupts . | . . . Stealth | -11 -10 -10 --------- Run | Yrd Mat Sub Distress Signals 2 | . 2 . Communications Jammed . | . . . Distress Signals . | . . . Times Spotted 44 | . 10 34 Peak Tracking Total 6 | . 3 6 Tactical Retreats 2 | . 1 1 Traps | -11 -10 -10 ------- Run | Yrd Mat Sub Traps Triggered 3 | . 1 2 Indirectly . | . . . Trap Hack Attempts . | . . . Triggered . | . . . Disarmed . | . . . Reprogrammed . | . . . Reused . | . . . Traps Extracted . | . . . Installed . | . . . Triggered . | . . . Machines | -11 -10 -10 ---------- Run | Yrd Mat Sub Machines Disabled 1 | . . 1 Max in Single Turn 1 | . . 1 Machines Repaired . | . . . Machines Dismantled . | . . . Machines Sabotaged . | . . . Overloaded Fab Kills . | . . . Hacking | -11 -10 -10 --------- Run | Yrd Mat Sub Machines Accessed 7 | . 6 1 Terminals 6 | . 6 . Fabricators . | . . . Repair Stations . | . . . Recycling Units . | . . . Scanalyzers . | . . . Garrison Access . | . . . Total Hacks 18 | . 17 1 Successful 11 | . 10 1 Failed 7 | . 7 . Catastrophic . | . . . Database Lockouts . | . . . Manual 18 | . 18 . Terminals 17 | . 17 . Fabricators . | . . . Repair Stations . | . . . Recycling Units . | . . . Scanalyzers . | . . . Garrison Access . | . . . Terminal Hacks 3 | . 2 1 Part Schematic 1 | . 1 . Robot Analysis 1 | . 1 . Open Door 1 | . . 1 Fabricator Hacks . | . . . Repair Station Hacks . | . . . Recycling Unit Hacks . | . . . Scanalyzer . | . . . Garrison Access Hacks . | . . . Unauthorized Hacks 8 | . 8 . Terminals 8 | . 8 . Botnet 2 | . 2 . Operators 1 | . 1 . Skim 5 | . 5 . Fabricators . | . . . Repair Stations . | . . . Recycling Units . | . . . Scanalyzers . | . . . Garrison Access . | . . . Data Cores Recovered . | . . . Used . | . . . Hacking Detections 6 | . 6 . Full Trace Events . | . . . Feedback Events . | . . . Feedback Blocked . | . . . Robot Schematics Acquired . | . . . Robots Built . | . . . Authchips . | . . . Time . | . . . Total Robot Build Rating . | . . . Part Schematics Acquired 1 | . 1 . Parts Built . | . . . Authchips . | . . . Time . | . . . Total Part Build Rating . | . . . Parts Repaired . | . . . Time . | . . . Parts Recycled . | . . . Recycled Matter . | . . . Retrieved Matter . | . . . Retrieved Components . | . . . Parts Scanalyzed . | . . . Part Schematics Acquired . | . . . Parts Damaged . | . . . Bothacking | -11 -10 -10 ------------ Run | Yrd Mat Sub Used RIF Installer . | . . . Robots Hacked . | . . . Non-combat . | . . . Combat . | . . . Robot Hacks Applied . | . . . Relay Couplers Released . | . . . Fabnet Peak Effective % . | . . . Robots Rewired . | . . . Allies Hacked . | . . . Hacks Repelled . | . . . Allies | -11 -10 -10 -------- Run | Yrd Mat Sub Total Allies . | . . . Largest Group . | . . . Highest-Rated Group . | . . . Highest-Rated Ally . | . . . Total Orders . | . . . Ally Attacks . | . . . Total Damage . | . . . Kills . | . . . Allies Corrupted . | . . . Allies Melted . | . . . Intel | -11 -10 -10 ------- Run | Yrd Mat Sub Active Infowar (turns) 1925 | 4 423 1498 Seismic 1925 | 4 423 1498 Robot Analysis Total 1 | . 1 . Derelict Logs Recovered 2 | . . 2 Drone Launches . | . . . Drone Recoveries . | . . . Exploration | -11 -10 -10 ------------- Run | Yrd Mat Sub Turns Passed 4446 | 85 1057 3304 Spaces Moved 2143 | 14 420 1709 Core . | . . . Treads 1940 | . 231 1709 Legs 203 | 14 189 . Wheels . | . . . Hover . | . . . Flight . | . . . Fastest Speed 120 | 120 120 160 Average Speed 156 | 120 142 160 Slowest Speed 160 | 120 160 160 Overloaded Moves . | . . . Propulsion Burnouts . | . . . Robots Hopped . | . . . Potential Cave-ins . | . . . Cave-ins Triggered . | . . . Exploration Rate (%) 42 | 3 58 66 Regions Visited 2 Branch Regions 1 Pre-discovered Areas 5 | . 3 2 Known Exits Taken 1 | . 1 . Unknown Exits Taken 1 | 1 . . Scrap Searched 14 | . . 14 Spaces Dug 19 | . . 19 Terrain Destroyed 21 | . . 21 Melee 16 | . . 16 Projectile 5 | . . 5 AOE . | . . . Terrain Rammed . | . . . Walls Destroyed . | . . . Machines Disabled . | . . . Actions | -11 -10 -10 --------- Run | Yrd Mat Sub Total 3033 | 51 821 2161 Wait 649 | 21 344 284 Move 2141 | 13 419 1709 Hop . | . . . Pick Up 34 | 1 9 24 Fast Attach 6 | 1 2 3 Attach 5 | . 1 4 Detach 1 | . . 1 Swap 27 | . 10 17 Drop 28 | . 6 22 Fire 99 | 15 29 55 Melee 35 | . . 35 Ram . | . . . Kick . | . . . Crush 1 | . 1 . Escape Stasis . | . . . Rewire . | . . . Trap . | . . . Miscellaneous 7 | . . 7 Route ------- -11/Scrapyard -10/Materials (discovered 4 exits: [*Mat] / *Min x2 / *Sub) -10/Subcaves (discovered 3 exits: *Mat x2 / [*Rec]) History --------- Turn | Location | Event 26 | -11/Scrapyard | Discovered new exit (range 3) 86 | -11/Scrapyard | Entered Materials 302 | -10/Materials | Build established: Mutant 391 | -10/Materials | Discovered new exit (range 8) 590 | -10/Materials | Discovered new exit (range 16) 700 | -10/Materials | Identified exit to Subcaves 761 | -10/Materials | Learned Storage stockpile data 778 | -10/Materials | Learned location of Storage (-7) 786 | -10/Materials | Learned location of 2 exits from Mines 787 | -10/Materials | Learned 4 Subcaves zone layouts 795 | -10/Materials | Identified exit to Mines 841 | -10/Materials | Learned location of Mines (-10) 879 | -10/Materials | Learned 2 Storage zone layouts 1143 | -10/Materials | Entered Subcaves 1144 | -10/Subcaves | Identified exit to Materials 1238 | -10/Subcaves | Shifting Twisted Machinery released Enh. Flamer 1265 | -10/Subcaves | Shifting Twisted Machinery released Mak. Sword 1272 | -10/Subcaves | Ambushed by swarm of Subdwellers 1413 | -10/Subcaves | Discovered exit to Materials (range 15) 1463 | -10/Subcaves | Ambushed by Subdwellers from Twisted Machinery 1610 | -10/Subcaves | Build established: Subdweller-Mutant 1613 | -10/Subcaves | A Subdweller sparked back to life 1613 | -10/Subcaves | A Subdweller sparked back to life 1613 | -10/Subcaves | A Subdweller sparked back to life 1637 | -10/Subcaves | Found Prototype Flight Unit 1860 | -10/Subcaves | Disturbed a concealed Subdweller 1950 | -10/Subcaves | Discovered new exit (range 14) 2061 | -10/Subcaves | Ambushed by angry Subdweller bent on revenge 2442 | -10/Subcaves | Build established: Scavenger-Mutant 3364 | -10/Subcaves | Ambushed by Subdweller buried in earth 3658 | -10/Subcaves | Core integrity fell below 50% 3671 | -10/Subcaves | Learned location of Zion (-7) 3968 | -10/Subcaves | Build established: Mutant 4313 | -10/Subcaves | Learned location of Recycling (-7) 4420 | -10/Subcaves | Visited 4L-MR0's lab 4437 | -10/Subcaves | Core integrity fell below 20% 4447 | -10/Subcaves | Destroyed by 6N-N1Z(R) with Subdweller Beam Cannon Last Messages --------------- 04326_ Found Sub. Laser. 04326_ Found 48 Matter. 04329_ Searching scrap... 04329_ Found Battle Rifle. 04329_ Found 55 Matter. 04409_ Searching scrap... 04409_ Found Sub. Machine Gun. 04409_ Found Piercing Trap. 04409_ Found 30 Matter. 04410_ Searching scrap... 04410_ Found Battle Rifle. 04410_ Found 67 Matter. 04414_ Triggered Piercing Trap. 04414_ Spikes shoot up from the floor. 04414_ Critical hit (Impale). 04429_ Shield Generator destroyed. 04432_ Sub. Laser melted. 04432_ S2-7JE(R) destroyed. 04441_ 6N-N1Z(R) affixes Scrap Shield Fragment to Scrap Shield. Map ----- +----------------------------------------------------+ | ????????????????????????????????? | | ????????????????????????????????? | | ????????????????????????????????? | | ????????????????????????????????? | | ????????????????????????????????? | | ????????????????????????????????? | | ????????????????????????????????? | | ????????????????????????????????? | | ????????????????????????????????? | | ????????????????????????????????? | | ????????????????????????????????? | | ????????????????????????????????? | | ????????????????????????????????? | | ????????????????????????????????? | | ????????????????????????????????? | | ????????????????????????????????? | | ????????????????????????????????? | | ????????????????????????????????? | | ????????????????????? ??????????? | | ???????????????????? ??????????? | | ????????????????##? ???????????? | | ???????????????? ## ???????????? | | ????#######???## ???????????? | | ????#